[Event "NOR-chT Eliteserien 2018-19"]
[Site "Norway"]
[Date "2019.01.12"]
[Round "5"]
[White "Gausel, Einar J"]
[Black "Ranaldi, Lucas"]
[Result "1-0"]
[ECO "E14"]
[WhiteElo "2447"]
[BlackElo "2230"]
[Annotator "NA"]
[PlyCount "117"]
[EventDate "2018.11.02"]
[EventType "team-tourn"]
[EventCountry "NOR"]
[SourceTitle "playchess.com"]
[Source "ChessBase"]
[SourceQuality "1"]
[TimeControl "40/5400+30:1800+30"]

1. d4 {[%emt 0:00:00]} Nf6 {[%emt 0:07:51]} 2. Nf3 {[%emt 0:00:27]} e6 {[%emt 0:00:46]} 3. e3 {[%emt 0:00:08]} b6 {[%emt 0:00:07]} 4. Bd3 {[%emt 0:00:07]} Bb7 {[%emt 0:00:25]} 5. O-O {[%emt 0:00:13]} c5 {[%emt 0:00:07]} 6. c4 {[%emt 0:00:30]} Be7 {[%emt 0:00:43]} 7. b3 {[%emt 0:01:40]} O-O {[%emt 0:00:22]} 8. Nbd2 {[%emt 0:00:38]} cxd4 {[%emt 0:01:18]} 9. exd4 {[%emt 0:00:08]} d5 {[%emt 0:00:20]} 10. Bb2 {[%emt 0:00:12]} Nc6 {[%emt 0:00:46]} 11. Rc1 {[%emt 0:01:10]} Rc8 {[%emt 0:01:35]} 12. Re1 {[%emt 0:04:09]} Rc7 {[%emt 0:05:49]} 13. a3 {[%emt 0:02:52]} dxc4 {[%emt 0:18:24]} 14. bxc4 {[%emt 0:00:09]} Na5 {[%emt 0:00:45]} 15. Ne5 {[%emt 0:10:41]} Qa8 {[%emt 0:17:01]} 16. Re3 {[%emt 0:20:49]} b5 {[%emt 0:06:20]} 17. d5 {[%emt 0:09:01]} Rd8 {[%emt 0:15:34]} 18. Ng4 {[%emt 0:08:05]} Nxc4 {[%emt 0:03:28]} 19. Nxf6+ {[%emt 0:06:27]} Bxf6 {[%emt 0:00:32]} 20. Nxc4 {[%emt 0:00:05]} bxc4 {[%emt 0:05:21]} 21. Bxf6 {[%emt 0:04:46]} gxf6 {[%emt 0:00:24]} 22. Qg4+ {[%emt 0:10:22]} Kf8 {[%emt 0:01:59]} 23. Qf4 {[%emt 0:02:53]} Rxd5 {[%emt 0:05:04]} 24. Qxc7 {[%emt 0:00:27]} cxd3 {[%emt 0:02:01]} 25. Qc3 {[%emt 0:01:12]} d2 {[%emt 0:03:39]} 26. Rd1 {[%emt 0:00:26]} Qd8 {[%emt 0:00:15]} 27. Qb4+ {[%emt 0:00:21]} Qe7 {[%emt 0:00:10]} 28. Qxe7+ {[%emt 0:05:00]} Kxe7 {[%emt 0:00:01]} 29. Re2 {[%emt 0:02:45]} Rg5 {[%emt 0:00:11]} 30. f4 {[%emt 0:00:05]} Rg4 {[%emt 0:02:11]} 31. Rexd2 {[%emt 0:00:17]} Bd5 {[%emt 0:00:43]} 32. g3 {[%emt 0:01:20]} Rg8 {[%emt 0:00:48]} 33. Rxd5 {[%emt 0:03:34]} exd5 {[%emt 0:00:01]} 34. Rxd5 {[%emt 0:00:06]} Rc8 {[%emt 0:00:23]} 35. Ra5 {[%emt 0:00:27]} Rc7 {[%emt 0:00:08]} 36. Ra6 {[%emt 0:00:08]} f5 {[%emt 0:01:24]} 37. Kg2 {[%emt 0:00:32]} f6 {[%emt 0:00:17]} 38. Ra5 {[%emt 0:01:01]} Ke6 {[%emt 0:00:44]} 39. Kh3 {[%emt 0:00:51]} Rb7 {[%emt 0:00:42]} 40. Kh4 {[%emt 0:00:31]} Rc7 {[%emt 0:00:42]} 41. h3 {[%emt 0:34:35]} Rd7 {[%emt 0:01:53]} 42. Kh5 {[%emt 0:00:00]} Rc7 {[%emt 0:02:38]} 43. a4 {[%emt 0:00:00]} Rd7 {[%emt 0:00:31]} 44. Ra6+ {[%emt 0:00:00]} Kd5 {[%emt 0:05:36]} 45. Rxf6 {[%emt 0:00:00]} Ke4 {[%emt 0:00:08]} 46. Kh4 {[%emt 0:00:00]} Rd5 {[%emt 0:18:40]} 47. Re6+ {[%emt 0:00:00]} Kd4 {[%emt 0:00:15]} 48. Ra6 {[%emt 0:00:00]} Rd7 {[%emt 0:00:08]} 49. Ra5 {[%emt 0:00:00]} Rf7 {[%emt 0:00:45]} 50. Re5 {[%emt 0:00:00]} Kc4 {[%emt 0:01:36]} 51. a5 {[%emt 0:00:00]} a6 {[%emt 0:00:35]} 52. Kh5 {[%emt 0:00:00]} Kb4 {[%emt 0:01:04]} 53. Kh6 {[%emt 0:00:00]} Ka4 {[%emt 0:00:21]} 54. h4 {[%emt 0:00:00]} Kb4 {[%emt 0:00:03]} 55. h5 {[%emt 0:00:00]} Ka4 {[%emt 0:00:19]} 56. Kg5 {[%emt 0:00:00]} Rg7+ {[%emt 0:00:53]} 57. Kxf5 {[%emt 0:00:00]} Rxg3 {[%emt 0:00:06]} 58. Ke6 {[%emt 0:00:00]} Rh3 {[%emt 0:00:49]} 59. f5 {[%emt 0:00:00]} 1-0

[Event "NOR-chT Eliteserien 2018-19"]
[Site "Norway"]
[Date "2019.01.12"]
[Round "5"]
[White "Ostenstad, Berge"]
[Black "Risting, Eivind Olav"]
[Result "1/2-1/2"]
[ECO "A25"]
[WhiteElo "2440"]
[BlackElo "2281"]
[Annotator "NA"]
[PlyCount "88"]
[EventDate "2018.11.02"]
[EventType "team-tourn"]
[EventCountry "NOR"]
[SourceTitle "playchess.com"]
[Source "ChessBase"]
[SourceQuality "1"]
[TimeControl "40/5400+30:1800+30"]

1. c4 {[%emt 0:00:00]} e5 {[%emt 0:00:00]} 2. g3 {[%emt 0:00:00]} Nc6 {[%emt 0:00:13]} 3. Bg2 {[%emt 0:00:00]} Bc5 {[%emt 0:00:25]} 4. Nc3 {[%emt 0:00:49]} d6 {[%emt 0:00:29]} 5. d3 {[%emt 0:09:09]} a6 {[%emt 0:01:07]} 6. e3 {[%emt 0:02:21]} Ba7 {[%emt 0:00:35]} 7. Rb1 {[%emt 0:05:26]} Nf6 {[%emt 0:07:30]} 8. Nge2 {[%emt 0:02:58]} O-O {[%emt 0:00:55]} 9. O-O {[%emt 0:04:08]} Bf5 {[%emt 0:07:35]} 10. h3 {[%emt 0:03:00]} Qd7 {[%emt 0:05:40]} 11. Kh2 {[%emt 0:00:36]} h6 {[%emt 0:02:11]} 12. b4 {[%emt 0:08:02]} Rfe8 {[%emt 0:09:35]} 13. e4 {[%emt 0:13:43]} Bg6 {[%emt 0:17:47]} 14. g4 {[%emt 0:06:23]} Nd4 {[%emt 0:08:34]} 15. Nxd4 {[%emt 0:06:52]} Bxd4 {[%emt 0:08:17]} 16. Ne2 {[%emt 0:00:36]} Ba7 {[%emt 0:01:52]} 17. f4 {[%emt 0:04:19]} exf4 {[%emt 0:01:51]} 18. Nxf4 {[%emt 0:03:00]} Bd4 {[%emt 0:02:34]} 19. Kh1 {[%emt 0:01:02]} Nh7 {[%emt 0:10:31]} 20. Ne2 {[%emt 0:01:49]} Bf6 {[%emt 0:00:34]} 21. Ng3 {[%emt 0:01:10]} c6 {[%emt 0:00:44]} 22. Nf5 {[%emt 0:02:01]} b5 {[%emt 0:01:27]} 23. Qc2 {[%emt 0:05:16]} Rac8 {[%emt 0:01:12]} 24. Be3 {[%emt 0:01:32]} Qd8 {[%emt 0:03:38]} 25. Bg1 {[%emt 0:02:05]} Nf8 {[%emt 0:02:38]} 26. Qf2 {[%emt 0:06:14]} Bxf5 {[%emt 0:00:54]} 27. exf5 {[%emt 0:01:20]} Nd7 {[%emt 0:01:05]} 28. Qa7 {[%emt 0:02:35]} Ne5 {[%emt 0:00:54]} 29. Qxa6 {[%emt 0:03:47]} Ra8 {[%emt 0:01:15]} 30. Qb6 {[%emt 0:00:06]} Rxa2 {[%emt 0:01:09]} 31. Qxd8 {[%emt 0:00:20]} Rxd8 {[%emt 0:00:17]} 32. d4 {[%emt 0:01:42]} Nxc4 {[%emt 0:00:35]} 33. Bxc6 {[%emt 0:00:13]} Ra3 {[%emt 0:01:44]} 34. Kg2 {[%emt 0:02:20]} Rb8 {[%emt 0:00:34]} 35. Ra1 {[%emt 0:00:31]} Ne3+ {[%emt 0:00:20]} 36. Bxe3 {[%emt 0:01:41]} Rxe3 {[%emt 0:00:02]} 37. Rfd1 {[%emt 0:00:31]} Rb3 {[%emt 0:00:40]} 38. Ra7 {[%emt 0:00:28]} Rxb4 {[%emt 0:00:20]} 39. Bd5 {[%emt 0:00:06]} Rxd4 {[%emt 0:00:41]} 40. Rxd4 {[%emt 0:00:23]} Bxd4 {[%emt 0:00:01]} 41. Rxf7 {[%emt 0:30:17]} Kh8 {[%emt 0:30:53]} 42. Rd7 {[%emt 0:00:00]} Bf6 {[%emt 0:00:00]} 43. Rxd6 {[%emt 0:00:00]} Rd8 {[%emt 0:00:00]} 44. Rxd8+ {[%emt 0:00:00]} Bxd8 {[%emt 0:00:00]} 1/2-1/2

[Event "NOR-chT Eliteserien 2018-19"]
[Site "Norway"]
[Date "2019.01.12"]
[Round "5"]
[White "Hansen, Torbjorn Ringdal"]
[Black "Mihajlov, Sebastian"]
[Result "1-0"]
[ECO "C07"]
[WhiteElo "2419"]
[BlackElo "2363"]
[Annotator "NA"]
[PlyCount "39"]
[EventDate "2018.11.02"]
[EventType "team-tourn"]
[EventCountry "NOR"]
[SourceTitle "playchess.com"]
[Source "ChessBase"]
[SourceQuality "1"]
[TimeControl "40/5400+30:1800+30"]

1. e4 {[%emt 0:05:11]} e6 {[%emt 0:00:11]} 2. d4 {[%emt 0:00:07]} d5 {[%emt 0:00:03]} 3. Nd2 {[%emt 0:00:05]} a6 {[%emt 0:00:04]} 4. Bd3 {[%emt 0:00:09]} c5 {[%emt 0:00:07]} 5. dxc5 {[%emt 0:00:12]} Bxc5 {[%emt 0:00:07]} 6. Ngf3 {[%emt 0:00:22]} Nf6 {[%emt 0:00:32]} 7. O-O {[%emt 0:00:46]} Nc6 {[%emt 0:00:20]} 8. exd5 {[%emt 0:00:51]} Nxd5 {[%emt 0:00:06]} 9. Ne4 {[%emt 0:00:52]} Be7 {[%emt 0:00:46]} 10. c4 {[%emt 0:01:45]} Nf6 {[%emt 0:05:46]} 11. Qe2 {[%emt 0:03:55]} O-O {[%emt 0:01:10]} 12. Bd2 {[%emt 0:06:32]} Nxe4 {[%emt 0:07:12]} 13. Bxe4 {[%emt 0:01:23]} Bf6 {[%emt 0:00:55]} 14. Rad1 {[%emt 0:01:45]} Qb6 {[%emt 0:06:40]} 15. b4 {[%emt 0:09:16]} Rd8 {[%emt 0:05:19]} 16. Bg5 {[%emt 0:07:44]} Nxb4 {[%emt 0:26:27]} 17. Bxf6 {[%emt 0:01:49]} gxf6 {[%emt 0:00:55]} 18. Qe3 {[%emt 0:00:59]} Qc7 {[%emt 0:02:39]} 19. Qh6 {[%emt 0:00:36]} f5 {[%emt 0:01:57]} 20. Qg5+ {[%emt 0:00:08]} 1-0

[Event "NOR-chT Eliteserien 2018-19"]
[Site "Norway"]
[Date "2019.01.12"]
[Round "5"]
[White "Kaasen, Tor Fredrik"]
[Black "Machlik, Monika"]
[Result "0-1"]
[ECO "A56"]
[WhiteElo "2409"]
[BlackElo "2071"]
[Annotator "NA"]
[PlyCount "82"]
[EventDate "2018.11.02"]
[EventType "team-tourn"]
[EventCountry "NOR"]
[SourceTitle "playchess.com"]
[Source "ChessBase"]
[SourceQuality "1"]
[TimeControl "40/5400+30:1800+30"]

1. d4 {[%emt 0:00:00]} g6 {[%emt 0:01:50]} 2. c4 {[%emt 0:02:35]} Bg7 {[%emt 0:01:07]} 3. Nc3 {[%emt 0:01:18]} c5 {[%emt 0:01:47]} 4. d5 {[%emt 0:00:53]} d6 {[%emt 0:00:19]} 5. Nf3 {[%emt 0:14:01]} Nf6 {[%emt 0:01:18]} 6. h3 {[%emt 0:03:11]} O-O {[%emt 0:00:26]} 7. Bf4 {[%emt 0:02:26]} Na6 {[%emt 0:01:23]} 8. e3 {[%emt 0:02:51]} Nc7 {[%emt 0:02:45]} 9. Be2 {[%emt 0:03:54]} Rb8 {[%emt 0:02:29]} 10. O-O {[%emt 0:06:30]} a6 {[%emt 0:07:17]} 11. a4 {[%emt 0:04:10]} b5 {[%emt 0:02:11]} 12. axb5 {[%emt 0:04:22]} axb5 {[%emt 0:00:09]} 13. cxb5 {[%emt 0:07:59]} Bd7 {[%emt 0:01:42]} 14. e4 {[%emt 0:04:56]} Nxb5 {[%emt 0:05:23]} 15. e5 {[%emt 0:04:33]} Ne8 {[%emt 0:00:49]} 16. Re1 {[%emt 0:04:09]} Qb6 {[%emt 0:01:41]} 17. Nxb5 {[%emt 0:08:23]} Bxb5 {[%emt 0:00:00]} 18. Rb1 {[%emt 0:01:22]} Nc7 {[%emt 0:00:49]} 19. Bxb5 {[%emt 0:02:59]} Nxb5 {[%emt 0:00:14]} 20. Qd3 {[%emt 0:01:22]} Qc7 {[%emt 0:06:17]} 21. Qe3 {[%emt 0:05:45]} Qb7 {[%emt 0:04:28]} 22. Red1 {[%emt 0:03:59]} Rfd8 {[%emt 0:01:37]} 23. Bh6 {[%emt 0:04:40]} Bh8 {[%emt 0:01:31]} 24. e6 {[%emt 0:00:11]} f5 {[%emt 0:01:08]} 25. g4 {[%emt 0:00:57]} Nc7 {[%emt 0:03:34]} 26. Qd3 {[%emt 0:01:06]} Qb3 {[%emt 0:02:59]} 27. gxf5 {[%emt 0:00:35]} Qxd3 {[%emt 0:00:27]} 28. Rxd3 {[%emt 0:00:01]} c4 {[%emt 0:00:25]} 29. Rdd1 {[%emt 0:01:55]} Bxb2 {[%emt 0:04:16]} 30. Nd4 {[%emt 0:02:43]} c3 {[%emt 0:02:21]} 31. Bc1 {[%emt 0:00:46]} Nxd5 {[%emt 0:01:28]} 32. Bxb2 {[%emt 0:00:48]} Rxb2 {[%emt 0:00:17]} 33. Rbc1 {[%emt 0:00:27]} Rc8 {[%emt 0:00:41]} 34. fxg6 {[%emt 0:00:40]} hxg6 {[%emt 0:00:10]} 35. Rd3 {[%emt 0:00:26]} Rc5 {[%emt 0:01:12]} 36. Nc2 {[%emt 0:00:34]} Kg7 {[%emt 0:01:12]} 37. Kf1 {[%emt 0:00:30]} Kf6 {[%emt 0:00:24]} 38. Ne3 {[%emt 0:00:28]} Nf4 {[%emt 0:03:34]} 39. Ng4+ {[%emt 0:00:32]} Kxe6 {[%emt 0:00:54]} 40. Re3+ {[%emt 0:00:31]} Kd7 {[%emt 0:00:23]} 41. Rf3 {[%emt 0:10:12]} Ne2 {[%emt 0:00:46]} 0-1

[Event "NOR-chT Eliteserien 2018-19"]
[Site "Norway"]
[Date "2019.01.12"]
[Round "5"]
[White "Haug, Johannes"]
[Black "Stokke, Kjetil"]
[Result "0-1"]
[ECO "B06"]
[WhiteElo "2402"]
[BlackElo "2334"]
[Annotator "NA"]
[PlyCount "94"]
[EventDate "2018.11.02"]
[EventType "team-tourn"]
[EventCountry "NOR"]
[SourceTitle "playchess.com"]
[Source "ChessBase"]
[SourceQuality "1"]
[TimeControl "40/5400+30:1800+30"]

1. e4 {[%emt 0:21:33]} g6 {[%emt 0:09:05]} 2. d4 {[%emt 0:00:30]} Bg7 {[%emt 0:00:30]} 3. Nc3 {[%emt 0:00:30]} d5 {[%emt 0:00:30]} 4. Be3 {[%emt 0:00:30]} Nf6 {[%emt 0:00:30]} 5. exd5 {[%emt 0:00:30]} Nxd5 {[%emt 0:00:30]} 6. Nxd5 {[%emt 0:00:30]} Qxd5 7. Nf3 {[%emt 0:00:30]} O-O {[%emt 0:01:00]} 8. Be2 {[%emt 0:05:34]} c5 {[%emt 0:04:33]} 9. c4 {[%emt 0:05:10]} Qd6 {[%emt 0:01:26]} 10. O-O {[%emt 0:03:55]} Nc6 {[%emt 0:03:11]} 11. d5 {[%emt 0:06:41]} Ne5 {[%emt 0:01:20]} 12. Ng5 {[%emt 0:02:29]} b6 {[%emt 0:09:14]} 13. h3 {[%emt 0:04:03]} f5 {[%emt 0:04:53]} 14. f4 {[%emt 0:12:36]} Nf7 {[%emt 0:01:50]} 15. Nxf7 {[%emt 0:01:37]} Rxf7 {[%emt 0:00:12]} 16. Qd2 {[%emt 0:00:04]} e5 {[%emt 0:02:49]} 17. Rae1 {[%emt 0:07:37]} Bd7 {[%emt 0:01:40]} 18. fxe5 {[%emt 0:04:20]} Bxe5 {[%emt 0:00:09]} 19. Bf4 {[%emt 0:01:58]} Bxf4 {[%emt 0:03:02]} 20. Rxf4 {[%emt 0:02:29]} Re8 {[%emt 0:01:47]} 21. Rff1 {[%emt 0:00:08]} Rfe7 {[%emt 0:01:55]} 22. Bf3 {[%emt 0:00:06]} Rxe1 {[%emt 0:12:22]} 23. Rxe1 {[%emt 0:00:02]} Rxe1+ {[%emt 0:00:22]} 24. Qxe1 {[%emt 0:00:01]} Kg7 {[%emt 0:00:15]} 25. b3 {[%emt 0:02:17]} g5 {[%emt 0:04:42]} 26. Bh5 {[%emt 0:09:20]} Kf6 {[%emt 0:01:54]} 27. Be8 {[%emt 0:00:16]} Bc8 {[%emt 0:00:17]} 28. Bc6 {[%emt 0:00:54]} Qe5 {[%emt 0:00:31]} 29. Qd2 {[%emt 0:00:51]} Qd4+ {[%emt 0:08:49]} 30. Qxd4+ {[%emt 0:01:51]} cxd4 {[%emt 0:00:05]} 31. b4 {[%emt 0:01:55]} Ba6 {[%emt 0:00:25]} 32. c5 {[%emt 0:01:41]} bxc5 {[%emt 0:00:11]} 33. bxc5 {[%emt 0:00:14]} d3 {[%emt 0:00:44]} 34. d6 {[%emt 0:02:27]} d2 {[%emt 0:00:16]} 35. Bf3 {[%emt 0:00:18]} Bb5 {[%emt 0:01:15]} 36. Bd1 {[%emt 0:00:43]} Ke5 {[%emt 0:02:43]} 37. Kf2 {[%emt 0:00:32]} Kd5 {[%emt 0:02:25]} 38. g3 {[%emt 0:00:35]} Kxc5 {[%emt 0:01:37]} 39. Ke3 {[%emt 0:00:06]} Kxd6 {[%emt 0:00:18]} 40. Kxd2 {[%emt 0:00:09]} f4 {[%emt 0:02:45]} 41. gxf4 {[%emt 0:07:21]} gxf4 {[%emt 0:00:23]} 42. Bc2 {[%emt 0:00:07]} h6 {[%emt 0:00:34]} 43. a3 {[%emt 0:03:57]} Ke5 {[%emt 0:00:28]} 44. Ke1 {[%emt 0:04:03]} Kd4 {[%emt 0:01:56]} 45. Kf2 {[%emt 0:00:35]} Bc6 {[%emt 0:00:46]} 46. h4 {[%emt 0:00:18]} a5 {[%emt 0:00:44]} 47. Bd1 {[%emt 0:00:52]} Kc3 {[%emt 0:00:35]} 0-1

[Event "NOR-chT Eliteserien 2018-19"]
[Site "Norway"]
[Date "2019.01.12"]
[Round "5"]
[White "Ogaard, Leif"]
[Black "Vitenberg, Noam Aviv"]
[Result "1/2-1/2"]
[ECO "D31"]
[WhiteElo "2382"]
[BlackElo "2139"]
[Annotator "NA"]
[PlyCount "86"]
[EventDate "2018.11.02"]
[EventType "team-tourn"]
[EventCountry "NOR"]
[SourceTitle "playchess.com"]
[Source "ChessBase"]
[SourceQuality "1"]
[TimeControl "40/5400+30:1800+30"]

1. c4 {[%emt 0:00:00]} e6 {[%emt 0:00:00]} 2. Nc3 {[%emt 0:01:31]} d5 {[%emt 0:00:14]} 3. d4 {[%emt 0:00:09]} Bb4 {[%emt 0:00:16]} 4. e3 {[%emt 0:04:28]} c5 {[%emt 0:00:32]} 5. cxd5 {[%emt 0:00:37]} exd5 {[%emt 0:01:05]} 6. Bd3 {[%emt 0:01:13]} cxd4 {[%emt 0:09:03]} 7. exd4 {[%emt 0:00:13]} Ne7 {[%emt 0:01:58]} 8. Qh5 {[%emt 0:04:11]} Nd7 {[%emt 0:13:37]} 9. Bg5 {[%emt 0:04:05]} Nf6 {[%emt 0:08:43]} 10. Bxf6 {[%emt 0:02:29]} gxf6 {[%emt 0:00:16]} 11. Nge2 {[%emt 0:00:48]} Be6 {[%emt 0:07:04]} 12. O-O {[%emt 0:10:41]} Qd7 {[%emt 0:17:48]} 13. Rac1 {[%emt 0:07:01]} Nc6 {[%emt 0:03:34]} 14. Qh4 {[%emt 0:03:32]} Be7 {[%emt 0:08:42]} 15. Na4 {[%emt 0:06:01]} Nb4 {[%emt 0:02:06]} 16. Bc2 {[%emt 0:13:30]} Nxc2 {[%emt 0:04:29]} 17. Nc5 {[%emt 0:00:12]} Bxc5 {[%emt 0:01:58]} 18. dxc5 {[%emt 0:00:07]} d4 {[%emt 0:05:40]} 19. Qxf6 {[%emt 0:15:46]} Rg8 {[%emt 0:01:03]} 20. Rxc2 {[%emt 0:04:18]} d3 {[%emt 0:01:36]} 21. Rd2 {[%emt 0:00:30]} dxe2 {[%emt 0:00:16]} 22. Rxd7 {[%emt 0:00:17]} exf1=Q+ {[%emt 0:00:45]} 23. Kxf1 {[%emt 0:00:09]} Kxd7 {[%emt 0:00:51]} 24. Qd4+ {[%emt 0:00:17]} Ke8 {[%emt 0:01:06]} 25. Qe4 {[%emt 0:01:10]} Rd8 {[%emt 0:02:15]} 26. c6 {[%emt 0:09:45]} Rg4 {[%emt 0:04:40]} 27. f4 {[%emt 0:00:56]} bxc6 {[%emt 0:00:58]} 28. h3 {[%emt 0:00:31]} Rg6 {[%emt 0:01:53]} 29. f5 {[%emt 0:00:30]} Rf6 {[%emt 0:00:07]} 30. g4 {[%emt 0:00:09]} Kf8 {[%emt 0:01:22]} 31. Qe5 {[%emt 0:05:42]} Bc4+ {[%emt 0:00:23]} 32. Kg1 {[%emt 0:00:27]} Rd1+ {[%emt 0:00:49]} 33. Kh2 {[%emt 0:00:35]} Rfd6 {[%emt 0:00:37]} 34. Qh8+ {[%emt 0:00:50]} Ke7 {[%emt 0:00:03]} 35. Qe5+ {[%emt 0:00:08]} Kf8 {[%emt 0:00:18]} 36. Qh8+ {[%emt 0:00:16]} Ke7 {[%emt 0:00:04]} 37. Qe5+ {[%emt 0:00:06]} Kd7 {[%emt 0:00:23]} 38. Qc5 {[%emt 0:00:24]} R1d2+ {[%emt 0:00:42]} 39. Kg3 {[%emt 0:00:19]} R2d3+ {[%emt 0:01:39]} 40. Kh4 {[%emt 0:00:24]} R6d4 {[%emt 0:00:33]} 41. Qxa7+ {[%emt 0:30:14]} Kd6 {[%emt 0:12:29]} 42. Qb8+ {[%emt 0:00:00]} Kd7 {[%emt 0:00:46]} 43. Qa7+ {[%emt 0:00:00]} Kd6 {[%emt 0:00:29]} 1/2-1/2

[Event "NOR-chT Eliteserien 2018-19"]
[Site "Norway"]
[Date "2019.01.12"]
[Round "5"]
[White "Dahl, Trygve"]
[Black "Tisdall, Jonathan D"]
[Result "1/2-1/2"]
[ECO "B40"]
[WhiteElo "2342"]
[BlackElo "2399"]
[Annotator "NA"]
[PlyCount "81"]
[EventDate "2018.11.02"]
[EventType "team-tourn"]
[EventCountry "NOR"]
[SourceTitle "playchess.com"]
[Source "ChessBase"]
[SourceQuality "1"]
[TimeControl "40/5400+30:1800+30"]

1. e4 {[%emt 0:00:00]} c5 {[%emt 0:00:01]} 2. Nf3 {[%emt 0:00:00]} e6 {[%emt 0:00:40]} 3. g3 {[%emt 0:01:18]} Nc6 {[%emt 0:01:42]} 4. Bg2 {[%emt 0:00:07]} Nf6 {[%emt 0:00:22]} 5. Qe2 {[%emt 0:00:49]} d5 {[%emt 0:03:17]} 6. exd5 {[%emt 0:05:35]} Nxd5 {[%emt 0:00:15]} 7. O-O {[%emt 0:00:28]} Be7 {[%emt 0:01:58]} 8. Nc3 {[%emt 0:00:12]} O-O {[%emt 0:03:11]} 9. Rd1 {[%emt 0:02:02]} Ndb4 {[%emt 0:07:19]} 10. d3 {[%emt 0:00:38]} Nd4 {[%emt 0:03:34]} 11. Nxd4 {[%emt 0:00:13]} cxd4 {[%emt 0:00:07]} 12. Nb1 {[%emt 0:04:27]} Bf6 {[%emt 0:07:20]} 13. c3 {[%emt 0:16:33]} dxc3 {[%emt 0:06:33]} 14. bxc3 {[%emt 0:00:07]} Nd5 {[%emt 0:00:17]} 15. d4 {[%emt 0:03:09]} b6 {[%emt 0:13:19]} 16. Bb2 {[%emt 0:04:04]} a5 {[%emt 0:02:11]} 17. Nd2 {[%emt 0:14:13]} Ba6 {[%emt 0:02:31]} 18. c4 {[%emt 0:01:56]} Rc8 {[%emt 0:00:13]} 19. Rac1 {[%emt 0:00:56]} Nb4 {[%emt 0:06:45]} 20. a3 {[%emt 0:04:18]} Nc6 {[%emt 0:00:08]} 21. Nf3 {[%emt 0:01:24]} Ne7 {[%emt 0:06:38]} 22. h4 {[%emt 0:02:48]} Qc7 {[%emt 0:04:13]} 23. Nd2 {[%emt 0:02:47]} Rfd8 {[%emt 0:11:47]} 24. Ne4 {[%emt 0:01:08]} Bxc4 {[%emt 0:00:55]} 25. Nxf6+ {[%emt 0:00:47]} gxf6 {[%emt 0:00:02]} 26. Qg4+ {[%emt 0:00:06]} Ng6 {[%emt 0:00:31]} 27. d5 {[%emt 0:05:02]} h5 {[%emt 0:03:30]} 28. Qxh5 {[%emt 0:01:32]} Qe7 {[%emt 0:00:08]} 29. Qg4 {[%emt 0:07:26]} f5 {[%emt 0:01:42]} 30. Qh5 {[%emt 0:00:15]} Bb3 {[%emt 0:06:10]} 31. Rxc8 {[%emt 0:02:34]} Rxc8 {[%emt 0:00:07]} 32. Re1 {[%emt 0:00:08]} Rc2 {[%emt 0:01:29]} 33. Rxe6 {[%emt 0:01:37]} fxe6 {[%emt 0:00:37]} 34. Qxg6+ {[%emt 0:00:29]} Kf8 {[%emt 0:00:15]} 35. Bf6 {[%emt 0:02:16]} Qf7 {[%emt 0:01:40]} 36. Qh6+ {[%emt 0:02:01]} Ke8 {[%emt 0:00:02]} 37. Qh8+ {[%emt 0:08:38]} Qf8 {[%emt 0:00:02]} 38. Qh5+ {[%emt 0:00:17]} Qf7 {[%emt 0:00:09]} 39. Qh8+ {[%emt 0:00:07]} Qf8 {[%emt 0:00:05]} 40. Qh5+ {[%emt 0:01:03]} Qf7 {[%emt 0:00:07]} 41. Qh8+ {[%emt 0:00:28]} 1/2-1/2

[Event "NOR-chT Eliteserien 2018-19"]
[Site "Norway"]
[Date "2019.01.12"]
[Round "5"]
[White "Gullaksen, Eirik"]
[Black "Tryggestad, Andreas Garberg"]
[Result "0-1"]
[ECO "E10"]
[WhiteElo "2341"]
[BlackElo "2333"]
[Annotator "NA"]
[PlyCount "74"]
[EventDate "2018.11.02"]
[EventType "team-tourn"]
[EventCountry "NOR"]
[SourceTitle "playchess.com"]
[Source "ChessBase"]
[SourceQuality "1"]
[TimeControl "40/5400+30:1800+30"]

1. d4 {[%emt 0:00:00]} Nf6 {[%emt 0:00:00]} 2. c4 {[%emt 0:00:00]} e6 {[%emt 0:00:55]} 3. Nf3 {[%emt 0:00:00]} c5 {[%emt 0:00:37]} 4. d5 {[%emt 0:00:23]} b5 {[%emt 0:00:06]} 5. dxe6 {[%emt 0:01:39]} fxe6 {[%emt 0:00:07]} 6. cxb5 {[%emt 0:00:52]} d5 {[%emt 0:01:31]} 7. e3 {[%emt 0:03:09]} Bd6 {[%emt 0:00:21]} 8. b3 {[%emt 0:01:44]} Bb7 {[%emt 0:03:53]} 9. Bb2 {[%emt 0:01:15]} O-O {[%emt 0:00:13]} 10. Nbd2 {[%emt 0:01:34]} Qe7 {[%emt 0:07:43]} 11. Ne5 {[%emt 0:13:46]} Qc7 {[%emt 0:06:14]} 12. Ndf3 {[%emt 0:15:46]} Ne4 {[%emt 0:00:52]} 13. Qc2 {[%emt 0:07:29]} Qa5+ {[%emt 0:00:30]} 14. Kd1 {[%emt 0:00:16]} a6 {[%emt 0:00:59]} 15. b6 {[%emt 0:11:04]} Bxe5 {[%emt 0:09:20]} 16. Bxe5 {[%emt 0:00:15]} Nc6 {[%emt 0:00:00]} 17. Bc7 {[%emt 0:03:49]} Qa3 {[%emt 0:27:19]} 18. Rb1 {[%emt 0:06:57]} Qa5 {[%emt 0:05:06]} 19. Ra1 {[%emt 0:00:48]} Nc3+ {[%emt 0:18:58]} 20. Kc1 {[%emt 0:04:49]} Nb4 {[%emt 0:03:40]} 21. Qb2 {[%emt 0:03:20]} Nbxa2+ {[%emt 0:02:38]} 22. Kc2 {[%emt 0:00:42]} d4 {[%emt 0:00:12]} 23. Bd3 {[%emt 0:02:10]} Bxf3 {[%emt 0:07:34]} 24. gxf3 {[%emt 0:00:19]} Rxf3 {[%emt 0:01:24]} 25. Rhf1 {[%emt 0:02:47]} Raf8 {[%emt 0:00:00]} 26. Bg3 {[%emt 0:01:20]} Nb4+ {[%emt 0:00:51]} 27. Kd2 {[%emt 0:00:23]} Qxb6 {[%emt 0:00:16]} 28. Bc4 {[%emt 0:03:29]} dxe3+ {[%emt 0:01:00]} 29. Kxc3 {[%emt 0:01:39]} e2+ {[%emt 0:01:24]} 30. Kd2 {[%emt 0:00:08]} exf1=Q {[%emt 0:00:05]} 31. Rxf1 {[%emt 0:00:09]} Nd5 {[%emt 0:00:24]} 32. Qe5 {[%emt 0:02:19]} R3f5 {[%emt 0:00:59]} 33. Qe4 {[%emt 0:01:59]} Qa5+ {[%emt 0:00:34]} 34. Kc1 {[%emt 0:01:11]} Qa1+ {[%emt 0:00:26]} 35. Kc2 {[%emt 0:02:09]} Nb4+ {[%emt 0:00:31]} 36. Kd2 {[%emt 0:00:13]} Rd8+ {[%emt 0:00:18]} 37. Ke3 {[%emt 0:01:06]} Qc3+ {[%emt 0:00:04] Kd4 [%emt 00:00:26]} 0-1